Cogmind - Beta 16 @@@ ROGUE MODE // 2025.10.26 @ 17:24:39 Player: Moodge Result: Destroyed by Y-45 Defender with Beam Rifle Performance ------------- Evolutions (2) 1000 Regions Visited (3) 600 Robots Destroyed (17) 85 Value Destroyed (386) 386 Prototype IDs (4) 80 Alien Tech Used (0) 0 Bonus (200) 200 TOTAL SCORE: 2351 Bonus ------- Pacifist 200 Cogmind --------- Core Integrity 0/550 Matter 295/300 Energy 100/100 System Corruption 0% Temperature Cool (9) Movement Core (700) Ox13 Location -8/Materials Parts ------- > --- POWER (2) -------- (None) > --- PROPULSION (4) --- (None) > --- UTILITY (3) ------ High-capacity Storage Unit Hacking Suite Hacking Suite > --- WEAPON (2) ------- (None) > --- INVENTORY (20) --- Weight Redist. System Structural Scanner ECM Suite ECM Suite Hardened Light Armor Plating Hacking Suite Hacking Suite Peak State ------------ > --- POWER ------------ Improved Ion Engine > --- PROPULSION ------- Aluminum Leg Aluminum Leg Aluminum Leg Aluminum Leg > --- UTILITY ---------- Large Storage Unit Hacking Suite Hacking Suite > --- WEAPON ----------- Field Laser Field Laser > --- INVENTORY -------- Aluminum Leg Aluminum Leg Improved Hover Unit Weight Redist. System Structural Scanner ECM Suite ECM Suite Hardened Light Armor Plating Hardened Light Armor Plating Hardened Light Armor Plating Hacking Suite Hacking Suite Field Laser [Rating: 21] Favorites ----------- Power Light Ion Engine Engine Light Ion Engine Propulsion Aluminum Leg Leg Aluminum Leg Hover Unit Improved Hover Unit Flight Unit Flight Unit Utility Large Storage Unit Storage Large Storage Unit Hackware Hacking Suite Protection Hardened Light Armor Plating Weapon Field Laser Energy Gun Field Laser Ballistic Gun Light Assault Rifle Build | -11 -10 -9 -8 ------- Run | Yrd Mat Mat Mat Slots Evolved 4 | . . 2 2 Power 1 | . . . 1 Propulsion 2 | . . 2 . Utility 1 | . . . 1 Weapon . | . . . . Parts Attached 28 | 6 1 15 6 Power 3 | 1 . 2 . Engine 3 | 1 . 2 . Core . | . . . . Reactor . | . . . . Propulsion 9 | 2 . 5 2 Treads . | . . . . Leg 7 | 2 . 5 . Wheel . | . . . . Hover 1 | . . . 1 Flight 1 | . . . 1 Utility 8 | 1 1 3 3 Device . | . . . . Storage 3 | 1 . 1 1 Processor . | . . . . Hackware 2 | . . . 2 Protection 3 | . 1 2 . Artifact . | . . . . Weapon 8 | 2 . 5 1 Energy Gun 4 | 1 . 2 1 Energy Cannon . | . . . . Ballistic Gun 4 | 1 . 3 . Ballistic Cannon . | . . . . Launcher . | . . . . Special Weapon . | . . . . Impact Weapon . | . . . . Slashing Weapon . | . . . . Piercing Weapon . | . . . . Special Melee Weapon . | . . . . Unidentified Prototypes 1 | . . 1 . Parts Lost 12 | . . . 12 Power 1 | . . . 1 Propulsion 8 | . . . 8 Utility . | . . . . Weapon 3 | . . . 3 Highest Loss Streak 8 | . . . 8 To Critical Strikes . | . . . . Average Backups 8 | . . 9 10 Power . | . . . . Propulsion 1 | . . 1 1 Utility 5 | . . 6 7 Weapon 1 | . . 1 . Tool/Special . | . . . . Unused Backups 17 | . . 9 8 Power . | . . . . Propulsion . | . . . . Utility 11 | . . 3 8 Weapon 6 | . . 6 . Tool/Special . | . . . . Average Slot Usage (%) 85 | . 95 92 64 Engine 9 | . 14 11 3 Leg 31 | . 28 37 20 Storage 10 | . 14 11 9 Hackware 4 | . . . 17 Protection 8 | . 10 11 . Energy Gun 10 | . 14 8 12 Ballistic Gun 10 | . 14 13 . Peak Build Rating 21 | 6 7 17 21 Average Rating 12 | 4 6 12 15 On Entrance 7 | . 6 7 17 Avg Prop Armor Cover (%) 18 | . . . 18 Naked Turns . | . . . . Heaviest Build 53 | 11 14 38 53 Greatest Support 40 | 20 20 40 40 Greatest Overweight (x) 14 | . . 1 14 Average Overweight (x) . | . . . 2 Largest Inventory Capacity 20 | 8 8 15 20 Average Capacity 14 | 6 8 14 19 Most Carried 15 | 1 1 15 14 Average Carried 8 | . . 9 10 Final Capacity 20 | 8 8 15 20 Final Carried 14 | . . 14 7 Class Distribution -------------------- 50% | Scavenger-Mutant 33% | Mutant 16% | Hacker-Mutant Dominant Class ---------------- Mutant | -10/Materials Scavenger-Mutant | -9/Materials Hacker-Mutant | -8/Materials Resources | -11 -10 -9 -8 ----------- Run | Yrd Mat Mat Mat Matter Collected 588 | 160 82 306 40 Remotely . | . . . . Salvage Created 525 | . . 388 137 Parts 28 | . . 23 5 Haulers Intercepted 1 | . . 1 . Recyclers Shooed . | . . . . Parts Field Recycled . | . . . . Retrieved Matter . | . . . . Parts Self-Destructed . | . . . . Prevented . | . . . . Parts Restored . | . . . . Kills | -11 -10 -9 -8 ------- Run | Yrd Mat Mat Mat Combat Hostiles Destroyed 14 | . . 10 4 Guns 13 | . . 9 4 Classes Destroyed 5 | . . 5 . Worker 2 | . . 1 1 Hauler 1 | . . 1 . Swarmer 6 | . . 4 2 Grunt 7 | . . 5 2 Sentry 1 | . . 1 . Best Kill Streak 4 | . . 4 2 Combat Bots Only 4 | . . 4 1 Max Kills in Single Turn 1 | . . 1 1 Gunslinging . | . . . . Exploded . | . . . . Melee . | . . . . Uniques/NPCs Destroyed . | . . . . Combat | -11 -10 -9 -8 -------- Run | Yrd Mat Mat Mat Hostile Shots Fired 228 | . . 48 180 Missed 53 | . . 13 40 Hits 175 | . . 35 140 Projectile 175 | . . 35 140 Critical Strikes 1 | . . . 1 Part Disruptions 1 | . . 1 . Damage Taken 1974 | . . 485 1489 Core 562 | . . 7 555 Absorbed by Shields . | . . . . Core Remaining (%) 99 | 100 100 98 . Volleys Fired 67 | . . 43 24 Largest 2 | . . 2 2 Hottest 126 | . . 126 126 Shots Fired 128 | . . 86 42 Gun 128 | . . 86 42 Cannon . | . . . . Launcher . | . . . . Special . | . . . . Kinetic 56 | . . 56 . Thermal 72 | . . 30 42 Explosive . | . . . . Electromagnetic . | . . . . Robot Hit Streak 14 | . . 14 3 Robot Miss Streak 13 | . . 13 3 Penetration Max . | . . . . Secondary Targets 2 | . . 1 1 Max Gunslinging Chain 1 | . . 1 1 Shots Hit Robots 67 | . . 47 20 Core Hits 25 | . . 18 7 Critical Kills . | . . . . Critical Parts Destroyed 1 | . . 1 . Critical Strikes 6 | . . 4 2 Burn 5 | . . 3 2 Destroy 1 | . . 1 . Melee Attacks . | . . . . Impact . | . . . . Slashing . | . . . . Piercing . | . . . . Sneak Attacks . | . . . . Combat Hostiles . | . . . . Follow-up Attacks . | . . . . Damage Inflicted 1045 | . . 602 443 Guns 994 | . . 570 424 Cannons . | . . . . Explosions . | . . . . Melee . | . . . . Ramming 51 | . . 32 19 Kinetic 294 | . . 294 . Thermal 700 | . . 276 424 Explosive . | . . . . Electromagnetic . | . . . . Impact . | . . . . Slashing . | . . . . Piercing . | . . . . Highest Corruption 1 | . 1 . . Average Corruption 1 | . 1 . . Corruption Purged . | . . . . Corruption Blocked . | . . . . Overload Shots . | . . . . Overflow Damage . | . . . . Projectiles . | . . . . Explosions . | . . . . Melee . | . . . . Knockbacks 1 | . . . 1 Impact 1 | . . . 1 Kinetic . | . . . . Secondary . | . . . . Self-Inflicted Damage . | . . . . Shots . | . . . . Rammed . | . . . . Targets Rammed 6 | . . 2 4 Kicked 6 | . . 2 4 Crushed . | . . . . Highest Temperature 456 | . . 225 456 Average Temperature 133 | . . 67 211 Received Heat Transfer 432 | . . 81 351 Effects 1 | . . . 1 Damage (minor) 1 | . . . 1 Siege Activations . | . . . . Martial Activations . | . . . . Shielding Activations . | . . . . Robots Disrupted . | . . . . Combat Hostiles . | . . . . Robots Corrupted . | . . . . Combat Hostiles . | . . . . Parts Fried . | . . . . Impact Corruptions . | . . . . Robots Melted 1 | . . 1 . Combat Hostiles 1 | . . 1 . Parts Melted 2 | . . 2 . Heat Transferred 2035 | . . 962 1073 Parts Sabotaged . | . . . . Parts Stolen . | . . . . Parts Stripped . | . . . . Power Chain Reactions . | . . . . Alert | -11 -10 -9 -8 ------- Run | Yrd Mat Mat Mat Maximum Alert Level . | . . . . Low Security (%) 100 | 100 100 100 100 Level 1 . | . . . . Level 2 . | . . . . Level 3 . | . . . . Level 4 . | . . . . Level 5 . | . . . . High Security . | . . . . Max Security . | . . . . Peak Influence 100 | . 5 100 26 Initial 26 | . . . 26 Average 22 | . . 35 6 Influence Increases 414 | . 5 324 85 Destroy 0b10 Robot/C 280 | . . 200 80 Destroy 0b10 Robot/NC 15 | . . 10 5 Destroy Leader 42 | . . 42 . Successful Hack 31 | . 5 26 . Destroy Structure 1 | . . 1 . Lose Combat Pursuer 45 | . . 45 . Influence Decreases 414 | . 5 261 148 Entered New Map 37 | . . . 37 Time Decay 331 | . 5 261 65 Lost Part 40 | . . . 40 Purge Threat 6 | . . . 6 Squads Dispatched 2 | . . 1 1 Investigation 1 | . . 1 . Extermination . | . . . . Reinforcement 1 | . . . 1 Assault . | . . . . Garrison . | . . . . Intercept . | . . . . Searches Triggered . | . . . . Construction Impeded . | . . . . Haulers Reinforced . | . . . . Active Scanning Responses . | . . . . Cargo Convoy Interrupts . | . . . . Stealth | -11 -10 -9 -8 --------- Run | Yrd Mat Mat Mat Distress Signals 2 | . . . 2 Communications Jammed . | . . . . Distress Signals . | . . . . Times Spotted 29 | . 2 19 8 Peak Tracking Total 6 | . 2 6 3 Tactical Retreats 1 | . . 1 . Traps | -11 -10 -9 -8 ------- Run | Yrd Mat Mat Mat Traps Triggered 2 | . 1 1 . Indirectly . | . . . . Trap Hack Attempts . | . . . . Triggered . | . . . . Disarmed . | . . . . Reprogrammed . | . . . . Reused . | . . . . Traps Extracted . | . . . . Installed . | . . . . Triggered . | . . . . Machines | -11 -10 -9 -8 ---------- Run | Yrd Mat Mat Mat Machines Disabled . | . . . . Max in Single Turn . | . . . . Machines Repaired . | . . . . Machines Dismantled . | . . . . Machines Sabotaged . | . . . . Overloaded Fab Kills . | . . . . Hacking | -11 -10 -9 -8 --------- Run | Yrd Mat Mat Mat Machines Accessed 10 | . 5 3 2 Terminals 8 | . 4 2 2 Fabricators . | . . . . Repair Stations . | . . . . Recycling Units 1 | . 1 . . Scanalyzers 1 | . . 1 . Garrison Access . | . . . . Total Hacks 17 | . 6 8 3 Successful 9 | . 4 4 1 Failed 8 | . 2 4 2 Catastrophic 2 | . 1 . 1 Database Lockouts . | . . . . Manual . | . . . . Terminals 12 | . 5 4 3 Fabricators . | . . . . Repair Stations . | . . . . Recycling Units 1 | . 1 . . Scanalyzers 4 | . . 4 . Garrison Access . | . . . . Terminal Hacks 7 | . 3 3 1 Record 1 | . . 1 . Prototype ID Bank 1 | . . 1 . Alert Level 1 | . . 1 . Unreport Threat 1 | . . . 1 Locate Traps 1 | . 1 . . Transport Status 1 | . 1 . . Investigation Status 1 | . 1 . . Fabricator Hacks . | . . . . Repair Station Hacks . | . . . . Recycling Unit Hacks 1 | . 1 . . Report Inventory 1 | . 1 . . Scanalyzer 1 | . . 1 . Insert Component 1 | . . 1 . Garrison Access Hacks . | . . . . Unauthorized Hacks . | . . . . Terminals . | . . . . Fabricators . | . . . . Repair Stations . | . . . . Recycling Units . | . . . . Scanalyzers . | . . . . Garrison Access . | . . . . Data Cores Recovered . | . . . . Used . | . . . . Hacking Detections 8 | . 3 3 2 Full Trace Events 1 | . . 1 . Feedback Events . | . . . . Feedback Blocked . | . . . . Robot Schematics Acquired . | . . . . Robots Built . | . . . . Authchips . | . . . . Time . | . . . . Total Robot Build Rating . | . . . . Part Schematics Acquired . | . . . . Parts Built . | . . . . Authchips . | . . . . Time . | . . . . Total Part Build Rating . | . . . . Part Studies Acquired . | . . . . Parts Repaired . | . . . . Time . | . . . . Parts Recycled . | . . . . Recycled Matter . | . . . . Retrieved Matter . | . . . . Retrieved Components . | . . . . Parts Scanalyzed . | . . . . Part Schematics Acquired . | . . . . Parts Damaged . | . . . . Bothacking | -11 -10 -9 -8 ------------ Run | Yrd Mat Mat Mat Used RIF Installer . | . . . . Robots Hacked . | . . . . Non-combat . | . . . . Combat . | . . . . Robot Hacks Applied . | . . . . Relay Couplers Released . | . . . . Fabnet Peak Effective % . | . . . . Robots Rewired . | . . . . Allies Hacked . | . . . . Hacks Repelled . | . . . . Allies | -11 -10 -9 -8 -------- Run | Yrd Mat Mat Mat Total Allies . | . . . . Largest Group . | . . . . Highest-Rated Group . | . . . . Highest-Rated Ally . | . . . . Total Orders . | . . . . Ally Attacks . | . . . . Total Damage . | . . . . Kills . | . . . . Allies Corrupted . | . . . . Allies Melted . | . . . . Intel | -11 -10 -9 -8 ------- Run | Yrd Mat Mat Mat Active Infowar (turns) . | . . . . Robot Analysis Total . | . . . . Derelict Logs Recovered . | . . . . Drone Launches . | . . . . Drone Recoveries . | . . . . Exploration | -11 -10 -9 -8 ------------- Run | Yrd Mat Mat Mat Turns Passed 1352 | 50 176 791 335 Spaces Moved 695 | 34 146 427 88 Core 15 | 2 . . 13 Treads . | . . . . Legs 674 | 32 146 427 69 Wheels . | . . . . Hover 3 | . . . 3 Flight 3 | . . . 3 Fastest Speed 50 | 50 120 120 120 Average Speed 147 | 115 120 133 274 Slowest Speed 760 | 120 120 190 760 Overloaded Moves . | . . . . Propulsion Burnouts . | . . . . Robots Hopped . | . . . . Potential Cave-ins . | . . . . Cave-ins Triggered . | . . . . Exploration Rate (%) 22 | 4 37 41 7 Regions Visited 3 Branch Regions . Pre-discovered Areas . | . . . . Known Exits Taken . | . . . . Unknown Exits Taken 3 | 1 1 1 . Scrap Searched . | . . . . Spaces Dug . | . . . . Terrain Destroyed . | . . . . Melee . | . . . . Projectile . | . . . . AOE . | . . . . Terrain Rammed . | . . . . Walls Destroyed . | . . . . Machines Disabled . | . . . . Actions | -11 -10 -9 -8 --------- Run | Yrd Mat Mat Mat Total 900 | 42 147 570 141 Wait 42 | 2 . 28 12 Move 692 | 33 145 426 88 Hop . | . . . . Pick Up 40 | 1 1 36 2 Fast Attach 5 | 5 . . . Attach 10 | 1 1 2 6 Detach . | . . . . Swap 15 | . . 13 2 Drop 23 | . . 20 3 Fire 67 | . . 43 24 Melee . | . . . . Ram . | . . . . Kick 6 | . . 2 4 Crush . | . . . . Escape Stasis . | . . . . Rewire . | . . . . Trap . | . . . . Miscellaneous . | . . . . Route ------- -11/Scrapyard -10/Materials (discovered 2 exits: *Mat / [*Min]) -9/Materials (discovered 4 exits: *Mat / [*Min x2] / [*Sto]) -8/Materials History --------- Turn | Location | Event 22 | -11/Scrapyard | Discovered new exit (range 16) 51 | -11/Scrapyard | Entered Materials 145 | -10/Materials | Discovered new exit (range 7) 218 | -10/Materials | Discovered new exit (range 8) 227 | -10/Materials | Entered another Materials area 227 | -9/Materials | Evolved 2 slots: Propulsion x2 313 | -9/Materials | Build established: Mutant 339 | -9/Materials | Discovered new exit (range 9) 612 | -9/Materials | Discovered new exit (range 13) 755 | -9/Materials | Build established: Scavenger-Mutant 785 | -9/Materials | Discovered new exit (range 6) 991 | -9/Materials | Discovered new exit (range 15) 1018 | -9/Materials | Entered another Materials area 1018 | -8/Materials | Evolved 2 slots: Power x1, Utility x1 1276 | -8/Materials | Core integrity fell below 50% 1290 | -8/Materials | Lost 8 parts (6n2w) 1336 | -8/Materials | Core integrity fell below 20% 1353 | -8/Materials | Destroyed by Y-45 Defender with Beam Rifle Last Messages --------------- 01237_ R-06 Scavenger destroyed. 01251_ R-06 Scavenger collects Sml. Storage Unit. 01255_ R-06 Scavenger collects Com. Wheel. 01258_ R-06 Scavenger collects Aluminum Leg. 01259_ Field Laser destroyed. 01261_ R-06 Scavenger collects Flight Unit. 01266_ S-10 Pest destroyed. 01268_ W-25 Informer sends out distress signal. 01286_ S-10 Pest destroyed. 01290_ Acquired 10 matter. 01290_ R-06 Scavenger collects Lgt. Assault Rifle. 01294_ R-06 Scavenger collects Sml. Matter Pod. 01297_ R-06 Scavenger collects Lgt. Ion Engine. 01304_ Field Laser destroyed. 01305_ Acquired Flight Unit. 01324_ Flight Unit destroyed. 01335_ R-06 Scavenger collects Lgt. Assault Rifle. Map ----- +----------------------------------------------------+ | ?????????????????????????????????????????????????? | | ?????????????????????????????????????????????????? | | ?????????????????????????????????????????????????? | | ?????????????????????????????????????????????????? | | ?????????????????????????????????????????????????? | | ?????????????????????????????????????????????????? | | ?????????????????????????????????????????????????? | | ?????????????????????????????????????????????????? | | ?????????????????????????????????????????????????? | | ?????????????????????????????????????????????????? | | ?????????????????????????????????????????????????? | | ?????????????????????????????????????????????????? | | ?????????????????????????????????????????????????? | | ?????????????????????????????????????????????????? | | ?????????????????????????????????????????????????? | | ?????????????????????????????????????????????????? | | ?????????????????????????????????????????????????? | | ?????????????????????????????????????????????????? | | ?????????????????????????????????????????????????? | | ?????????????????????????????######??????????????? | | ?????????????????#######?????#!!!!##?????????????? | | ?????????????????#!![[**?????? !#???????#?????? | | ?????????????????#!![[**?????? #?????? #?????? | | ?????????????????# ??????# ##???? #?????? | | ??????????###+####o ####### #### #?????? | | ????????? = @ #?????? | | ????????? % % T #?????? | | ????????? Y % #?????? | | ???????????##+################# #######??????? | | ??????????????????????????????## ###########???? | | ?????????????????????########### # #???? | | ?????????????????????# T # %# #???? | | ?????????????????????# %%+% % #???? | | ?????????????????????# !% # # #???? | | ?????????????????????# ! # ###########???? | | ?????????????????????########### ##????????????? | | ??????????????????????????????# ########?????? | | ??????????????????????????????# T" #?????? | | ??????????????????????????????# " #?????? | | ??????????????????????????????# #?????? | | ??????????????????????????????# ########?????? | | ??????????????????????????????#######????????????? | | ?????????????????????????????????????????????????? | | ?????????????????????????????????????????????????? | | ?????????????????????????????????????????????????? | | | | | | | | | | | +----------------------------------------------------+ Best States ------------- Heat Dissipation 31 Energy Generation 12 Energy Capacity 265 Matter Stores 300 Matter Capacity 300 Sight Range 16 Terrain Scan Density 10 Armor Coverage 225 Evasion (%) 55 Offensive Hacking 20 Item Schematics ----------------- None Robot Schematics ------------------ None Fabricated ------------ Nothing Repaired ---------- Nothing Studied --------- None Alien Tech Used ----------------- None Achievements -------------- None Challenges ------------ None Game ------ Seed MicroSuperdenseCapacitor Manual? 0 Play Time 00:18:40 Cumulative 23.1 hours Start 2025.10.26 @ 17:09:18 End 2025.10.26 @ 17:24:39 Sessions 1 Manual Loads 0 Difficulty Rogue Special Mode None Game No. 74 Rogue 74 Adventurer 0 Explorer 0 Win Type - Total 0 Types 0/0/0/0/0/0/0/0/0/0 Lore% 10 Gallery% 22 Achievement% 18 Wizard Run 0 Options --------- Layout 1 ASCII 0 Keyboard 0 Movement Mouse Keybinds 0 Fullscreen 2 Font 32/SmallcapsGlow Map View 50x35 Zoom Use 0% Tactical HUD 1 Map Filters NONE Filters NONE Steam 1 RUN: b1e928c1-624a-487a-aa2c-59a8298764e1